fUSD/lending_fUSD_20251017
["ID","MTS","AMOUNT","RATE_DAILY","PERIOD"]
[391645651,1760716279437,-151.0,0.00024931,7]
[391645652,1760716279447,-159.321966,0.00024931,7]
[391645653,1760716279457,-1262.016074,0.00024931,7]
[391645654,1760716279467,-501.90414551,0.00024931,2]
[391645655,1760716279476,-286.32284464,0.00024931,2]
[391645656,1760716279486,-192.237282,0.00024931,7]
[391645657,1760716279496,-156.980757,0.00024931,7]
[391645658,1760716279506,-1262.016074,0.00024931,7]
[391645659,1760716279515,-510.11306466,0.00024931,2]
[391645660,1760716279525,-151.0,0.00024931,7]
[391645661,1760716279535,-192.237282,0.00024931,7]
[391645662,1760716279544,-500.0,0.00024931,2]
[391645663,1760716279554,-1262.016074,0.00024931,7]
[391645664,1760716279563,-286.391507,0.00024931,7]
[391645665,1760716279572,-500.0,0.00024931,2]
[391645666,1760716279582,-502.15417359,0.00024931,2]
[391645667,1760716279594,-500.0,0.00024931,2]
[391645668,1760716279603,-192.237282,0.00024931,7]
[391645669,1760716279613,-500.89801814,0.00024931,2]
[391645670,1760716279623,-500.0,0.00024931,2]
[391645671,1760716279634,-500.0,0.00024931,2]
[391645672,1760716279647,-500.0,0.00024931,2]
[391645673,1760716279657,-286.391507,0.00024931,7]
[391645674,1760716279667,-500.0,0.00024931,2]
[391645675,1760716279677,-192.237282,0.00024931,7]
[391645676,1760716279687,-286.391507,0.00024931,7]
[391645677,1760716279696,-151.0,0.00024931,7]
[391645678,1760716279706,-500.0,0.00024931,2]
[391645679,1760716279717,-501.31910156,0.00024931,2]
[391645680,1760716279727,-286.391507,0.00024931,7]
[391645681,1760716279737,-151.0,0.00024931,7]
[391645682,1760716279747,-151.0,0.00024931,7]
[391645683,1760716279756,-500.0,0.00024931,2]
[391645684,1760716279766,-151.0,0.00024931,7]
[391645685,1760716279781,-206.108906,0.00024931,7]
[391645686,1760716279791,-151.0,0.00024931,7]
[391645687,1760716279801,-151.0,0.00024931,7]
[391645688,1760716279811,-650.917155,0.00024931,7]
[391645689,1760716279821,-500.0,0.00024931,2]
[391645690,1760716279831,-151.0,0.00024931,7]
[391645691,1760716279843,-650.917155,0.00024931,7]
[391645692,1760716279853,-500.0,0.00024931,2]
[391645693,1760716279863,-501.11307326,0.00024931,2]
[391645694,1760716279874,-281.919636,0.00024931,7]
[391645695,1760716279884,-650.917155,0.00024931,7]
[391645696,1760716279894,-151.0,0.00024931,7]
[391645697,1760716279904,-500.0,0.00024931,2]
[391645698,1760716279914,-500.0,0.00024931,2]
[391645699,1760716279925,-151.0,0.00024931,7]
[391645700,1760716279935,-500.0,0.00024931,2]
[391645701,1760716279945,-650.917155,0.00024931,7]
[391645702,1760716279956,-500.0,0.00024931,2]
[391645703,1760716279965,-503.03993908,0.00024931,2]
[391645704,1760716279975,-243.923511,0.00024931,7]
[391645705,1760716279985,-500.0,0.00024931,2]
[391645706,1760716279995,-151.0,0.00024931,7]
[391645707,1760716280005,-502.4,0.00024931,2]
[391645708,1760716280015,-500.0,0.00024931,2]
[391645709,1760716280026,-500.0,0.00024931,2]
[391645710,1760716280036,-500.0,0.00024931,2]
[391645711,1760716280046,-501.21261752,0.00024931,2]
[391645712,1760716280056,-480.51550222,0.00024931,2]
[391645713,1760716280066,-500.0,0.00024931,2]
[391645714,1760716280076,-500.0,0.00024931,2]
[391645715,1760716280089,-500.0,0.00024931,2]
[391645716,1760716280099,-500.0,0.00024931,2]
[391645717,1760716280110,-500.0,0.00024931,2]
[391645718,1760716280121,-522.00273792,0.00024931,2]
[391645719,1760716280131,-500.0,0.00024931,2]
[391645720,1760716280140,-500.0,0.00024931,2]
[391645721,1760716280150,-500.0,0.00024931,2]
[391645722,1760716280160,-158.46523598,0.00024931,2]
[391645723,1760716280170,-500.0,0.00024931,2]
[391645724,1760716280180,-500.50828995,0.00024931,2]
[391645725,1760716280190,-619.47,0.00024931,2]
[391645726,1760716280200,-202.18924263,0.00024931,2]
[391645727,1760716280210,-500.0,0.00024931,2]
[391645728,1760716280219,-667.35,0.00024931,2]
[391645729,1760716280229,-500.0,0.00024931,2]
[391645730,1760716280239,-1012.0,0.00024931,2]
[391645731,1760716280249,-500.0,0.00024931,2]
[391645732,1760716280259,-566.717086,0.00024931,2]
[391645733,1760716280268,-151.0,0.00024931,7]
[391645734,1760716280278,-205.69047267,0.00024931,2]
[391645735,1760716280288,-2301.51,0.00024931,2]
[391645736,1760716280298,-1812.54,0.00024931,2]
[391645737,1760716280308,-500.0,0.00024931,2]
[391645738,1760716280318,-151.0,0.00024931,7]
[391645739,1760716280328,-151.0,0.00024931,7]
[391645740,1760716280340,-500.0,0.00024931,2]
[391645741,1760716280349,-954.59095,0.00024931,7]
[391645742,1760716280359,-645.03100762,0.00024931,2]
[391645743,1760716280369,-500.0,0.00024931,2]
[391645744,1760716280379,-500.0,0.00024931,2]
[391645745,1760716280389,-151.0,0.00024931,7]
[391645746,1760716280400,-954.59095,0.00024931,7]
[391645747,1760716280410,-500.0,0.00024931,2]
[391645748,1760716280420,-317.901378,0.00024931,7]
[391645749,1760716280430,-500.0,0.00024931,2]
[391645750,1760716280440,-216.94509553,0.00024931,2]
[391645751,1760716280449,-317.901378,0.00024931,7]
[391645752,1760716280459,-954.59095,0.00024931,7]
[391645753,1760716280468,-317.901378,0.00024931,7]
[391645754,1760716280477,-1000.0,0.00024931,2]
[391645755,1760716280487,-954.59095,0.00024931,7]
[391645756,1760716280496,-500.0,0.00024931,2]
[391645757,1760716280506,-500.0,0.00024931,2]
[391645758,1760716280515,-500.0,0.00024931,2]
[391645759,1760716280524,-500.0,0.00024931,2]
[391645760,1760716280534,-317.901378,0.00024931,7]
[391645761,1760716280543,-500.0,0.00024931,2]
[391645762,1760716280552,-843.1,0.00024931,2]
[391645763,1760716280562,-500.0,0.00024931,2]
[391645764,1760716280572,-151.0,0.00024931,7]
[391645765,1760716280581,-1602.13,0.00024931,2]
[391645766,1760716280593,-511.79599111,0.00024931,2]
[391645767,1760716280603,-151.0,0.00024931,7]
[391645768,1760716280612,-500.0,0.00024931,2]
[391645769,1760716280622,-500.0,0.00024931,2]
[391645770,1760716280632,-151.0,0.00024931,7]
[391645771,1760716280644,-165.876787,0.00024931,7]
[391645772,1760716280654,-500.0,0.00024931,2]
[391645773,1760716280663,-500.0,0.00024931,2]
[391645774,1760716280674,-165.876787,0.00024931,7]
[391645775,1760716280684,-285.800409,0.00024931,7]
[391645776,1760716280694,-500.0,0.00024931,2]
[391645777,1760716280704,-500.0,0.00024931,2]
[391645778,1760716280715,-500.0,0.00024931,2]
[391645779,1760716280726,-746.37,0.00024931,2]
[391645780,1760716280735,-165.876787,0.00024931,7]
[391645781,1760716280745,-542.06597762,0.00024931,2]
[391645782,1760716280755,-500.0,0.00024931,2]
[391645783,1760716280764,-151.0,0.00024931,7]
[391645784,1760716280774,-151.0,0.00024931,7]
[391645785,1760716280784,-151.0,0.00024931,7]
[391645786,1760716280794,-165.876787,0.00024931,7]
[391645787,1760716280804,-500.0,0.00024931,2]
[391645788,1760716280815,-500.0,0.00024931,2]
[391645789,1760716280824,-151.0,0.00024931,7]
[391645790,1760716280837,-151.0,0.00024931,7]
[391645791,1760716280847,-501.20325194,0.00024931,2]
[391645792,1760716280858,-500.0,0.00024931,2]
[391645793,1760716280867,-500.0,0.00024931,2]
[391645794,1760716280878,-151.0,0.00024931,7]
[391645795,1760716280888,-526.97089818,0.00024931,2]
[391645796,1760716280898,-151.0,0.00024931,7]
[391645797,1760716280908,-151.0,0.00024931,7]
[391645798,1760716280918,-500.0,0.00024931,2]
[391645799,1760716280928,-151.0,0.00024931,7]
[391645800,1760716280939,-248.879167,0.00024931,7]
[391645801,1760716280949,-151.0,0.00024931,7]
[391645802,1760716280959,-190.144675,0.00024931,7]
[391645803,1760716280969,-533.82,0.00024931,2]
[391645804,1760716280978,-540.26825432,0.00024931,2]
[391645805,1760716280988,-500.0,0.00024931,2]
[391645806,1760716280998,-151.0,0.00024931,7]
[391645807,1760716281008,-190.144675,0.00024931,7]
[391645808,1760716281018,-151.0,0.00024931,7]
[391645809,1760716281028,-1139.78,0.00024931,2]
[391645810,1760716281039,-190.144675,0.00024931,7]
[391645811,1760716281048,-500.0,0.00024931,2]
[391645812,1760716281058,-500.0,0.00024931,2]
[391645813,1760716281069,-500.0,0.00024931,2]
[391645814,1760716281078,-190.144675,0.00024931,7]
[391645815,1760716281091,-500.0,0.00024931,2]
[391645816,1760716281101,-216.32674483,0.00024931,2]
[391645817,1760716281111,-632.01,0.00024931,2]
[391645818,1760716281121,-515.454646,0.00024931,7]
[391645819,1760716281131,-495.84736648,0.00024931,2]
[391645820,1760716281141,-500.0,0.00024931,2]
[391645821,1760716281151,-500.0,0.00024931,2]
[391645822,1760716281162,-515.454646,0.00024931,7]
[391645823,1760716281172,-500.0,0.00024931,2]
[391645824,1760716281182,-500.0,0.00024931,2]
[391645825,1760716281192,-515.454646,0.00024931,7]
[391645826,1760716281203,-500.0,0.00024931,2]
[391645827,1760716281213,-502.71372669,0.00024931,2]
[391645828,1760716281223,-500.0,0.00024931,2]
[391645829,1760716281233,-515.454646,0.00024931,7]
[391645830,1760716281243,-398.22937,0.00024931,7]
[391645831,1760716281253,-500.0,0.00024931,2]
[391645832,1760716281262,-398.22937,0.00024931,7]
[391645833,1760716281273,-308.29299175,0.00024931,2]
[391645834,1760716281282,-500.0,0.00024931,2]
[391645835,1760716281292,-398.22937,0.00024931,7]
[391645836,1760716281302,-500.0,0.00024931,2]
[391645837,1760716281311,-398.22937,0.00024931,7]
[391645838,1760716281321,-500.0,0.00024931,2]
[391645839,1760716281331,-2068.6,0.00024931,2]
[391645840,1760716281344,-500.0,0.00024931,2]
[391645841,1760716281354,-500.0,0.00024931,2]
[391645842,1760716281363,-500.0,0.00024931,2]
[391645843,1760716281374,-505.65702261,0.00024931,2]
[391645844,1760716281384,-1257.56,0.00024931,2]
[391645845,1760716281393,-500.0,0.00024931,2]
[391645846,1760716281403,-224.18672018,0.00024931,2]
[391645847,1760716281412,-626.12865509,0.00024931,2]
[391645848,1760716281423,-197.835286,0.00024931,7]
[391645849,1760716281433,-500.0,0.00024931,2]
[391645850,1760716281443,-151.0,0.00024931,7]
[391645851,1760716281452,-500.0,0.00024931,2]
[391645852,1760716281462,-197.835286,0.00024931,7]
[391645853,1760716281472,-500.0,0.00024931,2]
[391645854,1760716281542,-500.0,0.00024931,2]
[391645855,1760716281552,-197.835286,0.00024931,7]
[391645856,1760716281561,-500.0,0.00024931,2]
[391645857,1760716281571,-538.95162284,0.00024931,2]
[391645858,1760716281580,-500.92728374,0.00024931,2]
[391645859,1760716281591,-197.835286,0.00024931,7]
[391645860,1760716281601,-500.0,0.00024931,2]
[391645861,1760716281611,-500.0,0.00024931,2]
[391645862,1760716281620,-611.76667201,0.00024931,2]
[391645863,1760716281630,-151.0,0.00024931,7]
[391645864,1760716281641,-2482.405641,0.00024931,7]
[391645865,1760716281653,-500.0,0.00024931,2]
[391645866,1760716281662,-151.0,0.00024931,7]
[391645867,1760716281672,-2482.405641,0.00024931,7]
[391645868,1760716281683,-500.0,0.00024931,2]
[391645869,1760716281692,-500.0,0.00024931,2]
[391645870,1760716281703,-500.0,0.00024931,2]
[391645871,1760716281713,-500.0,0.00024931,2]
[391645872,1760716281723,-2482.405641,0.00024931,7]
[391645873,1760716281732,-500.0,0.00024931,2]
[391645874,1760716281741,-500.0,0.00024931,2]
[391645875,1760716281751,-2482.405641,0.00024931,7]
[391645876,1760716281761,-500.0,0.00024931,2]
[391645877,1760716281771,-500.0,0.00024931,2]
[391645878,1760716281781,-401.55481026,0.00024931,2]
[391645879,1760716281795,-500.0,0.00024931,2]
[391645880,1760716281805,-714.32,0.00024931,2]
[391645881,1760716281815,-194.211989,0.00024931,7]
[391645882,1760716281824,-500.0,0.00024931,2]
[391645883,1760716281835,-500.0,0.00024931,2]
[391645884,1760716281849,-500.0,0.00024931,2]
[391645885,1760716281859,-194.211989,0.00024931,7]
[391645886,1760716281870,-500.0,0.00024931,2]
[391645887,1760716281880,-194.211989,0.00024931,7]
[391645888,1760716281889,-151.0,0.00024931,7]
[391645889,1760716281899,-500.0,0.00024931,2]
[391645890,1760716281909,-500.0,0.00024931,2]
[391645891,1760716281919,-500.0,0.00024931,2]
[391645892,1760716281928,-1501.968105,0.00024931,7]
[391645893,1760716281938,-194.211997,0.00024931,7]
[391645894,1760716281947,-151.0,0.00024931,7]
[391645895,1760716281957,-500.0,0.00024931,2]
[391645896,1760716281966,-1501.968105,0.00024931,7]
[391645897,1760716281975,-3563.61,0.00024931,2]
[391645898,1760716281985,-981.38,0.00024931,2]
[391645899,1760716281995,-151.0,0.00024931,7]
[391645900,1760716282004,-1501.968105,0.00024931,7]
[391645901,1760716282013,-504.16726463,0.00024931,2]
[391645902,1760716282023,-1192.11,0.00024931,2]
[391645903,1760716282033,-151.0,0.00024931,7]
[391645904,1760716282043,-281.99076706,0.00024931,2]
[391645905,1760716282053,-500.0,0.00024931,2]
[391645906,1760716282063,-1501.968108,0.00024931,7]
[391645907,1760716282073,-435.599658,0.00024931,7]
[391645908,1760716282084,-562.972704,0.00024931,2]
[391645909,1760716282097,-151.0,0.00024931,7]
[391645910,1760716282106,-500.0,0.00024931,2]
[391645911,1760716282116,-435.599658,0.00024931,7]
[391645912,1760716282125,-484.28057186,0.00024931,2]
[391645913,1760716282135,-151.0,0.00024931,7]
[391645914,1760716282145,-151.0,0.00024931,7]
[391645915,1760716282155,-421.973986,0.00024931,7]
[391645916,1760716282165,-500.0,0.00024931,2]
[391645917,1760716282175,-1753.72,0.00024931,2]
[391645918,1760716282184,-500.0,0.00024931,2]
[391645919,1760716282193,-435.599658,0.00024931,7]
[391645920,1760716282203,-421.973986,0.00024931,7]
[391645921,1760716282212,-500.0,0.00024931,2]
[391645922,1760716282223,-435.599666,0.00024931,7]
[391645923,1760716282232,-421.973986,0.00024931,7]
[391645924,1760716282242,-500.0,0.00024931,2]
[391645925,1760716282251,-500.0,0.00024931,2]
[391645926,1760716282262,-760.030735,0.00024931,7]
[391645927,1760716282271,-421.973994,0.00024931,7]
[391645928,1760716282281,-500.0,0.00024931,2]
[391645929,1760716282291,-300.0,0.00024931,2]
[391645930,1760716282301,-760.030735,0.00024931,7]
[391645931,1760716282311,-167.79310102,0.00024931,2]
[391645932,1760716282321,-760.030735,0.00024931,7]
[391645933,1760716282331,-500.0,0.00024931,2]
[391645934,1760716282343,-606.68206831,0.00024931,2]
[391645935,1760716282352,-652.64,0.00024931,2]
[391645936,1760716282362,-1000.0,0.00024931,2]
[391645937,1760716282372,-760.030739,0.00024931,7]
[391645938,1760716282389,-500.0,0.00024931,2]
[391645939,1760716282405,-151.0,0.00024931,7]
[391645940,1760716282416,-368.52,0.00024931,2]
[391645941,1760716282426,-151.0,0.00024931,7]
[391645942,1760716282436,-500.0,0.00024931,2]
[391645943,1760716282446,-500.0,0.00024931,2]
[391645944,1760716282455,-188.5004722,0.00024931,7]
[391645945,1760716282465,-500.0,0.00024931,2]
[391645946,1760716282474,-151.0,0.00024931,7]
[391645947,1760716282484,-820.53,0.00024931,2]
[391645948,1760716282493,-500.0,0.00024931,2]
[391645949,1760716282502,-151.0,0.00024931,7]
[391645950,1760716282512,-500.0,0.00024931,2]
[391645951,1760716282525,-500.0,0.00024931,2]
[391645952,1760716282534,-151.0,0.00024931,7]
[391645953,1760716282544,-500.0,0.00024931,2]
[391645954,1760716282553,-500.0,0.00024931,2]
[391645955,1760716282563,-500.0,0.00024931,2]
[391645956,1760716282572,-500.0,0.00024931,2]
[391645957,1760716282582,-151.0,0.00024931,7]
[391645958,1760716282595,-286.78368251,0.00024931,2]
[391645959,1760716282604,-151.0,0.00024931,7]
[391645960,1760716282614,-1319.44,0.00024931,2]
[391645961,1760716282624,-500.0,0.00024931,2]
[391645962,1760716282634,-500.0,0.00024931,2]
[391645963,1760716282647,-245.30280516,0.00024931,2]
[391645964,1760716282657,-1052.39,0.00024931,2]
[391645965,1760716282667,-500.0,0.00024931,2]
[391645966,1760716282677,-441.81400673,0.00024931,2]
[391645967,1760716282686,-500.0,0.00024931,2]
[391645968,1760716282695,-151.0,0.00024931,7]
[391645969,1760716282704,-1787.43,0.00024931,2]
[391645970,1760716282715,-151.0,0.00024931,7]
[391645971,1760716282726,-500.0,0.00024931,2]
[391645972,1760716282735,-501.62111246,0.00024931,2]
[391645973,1760716282744,-500.0,0.00024931,2]
[391645974,1760716282754,-151.0,0.00024931,7]
[391645975,1760716282763,-500.0,0.00024931,2]
[391645976,1760716282773,-151.0,0.00024931,7]
[391645977,1760716282783,-500.0,0.00024931,2]
[391645978,1760716282793,-531.38861866,0.00024931,2]
[391645979,1760716282802,-151.0,0.00024931,7]
[391645980,1760716282811,-524.3673866,0.00024931,2]
[391645981,1760716282820,-197.091048,0.00024931,7]
[391645982,1760716282830,-288.23369462,0.00024931,2]
[391645983,1760716282841,-500.0,0.00024931,2]
[391645984,1760716282851,-500.0,0.00024931,2]
[391645985,1760716282861,-344.043516,0.00024931,7]
[391645986,1760716282871,-500.0,0.00024931,2]
[391645987,1760716282881,-500.0,0.00024931,2]
[391645988,1760716282891,-500.0,0.00024931,2]
[391645989,1760716282900,-344.043516,0.00024931,7]
[391645990,1760716282910,-689.83,0.00024931,2]
[391645991,1760716282920,-500.0,0.00024931,2]
[391645992,1760716282930,-500.0,0.00024931,2]
[391645993,1760716282941,-344.043516,0.00024931,7]
[391645994,1760716282951,-945.52,0.00024931,2]
[391645995,1760716282960,-500.0,0.00024931,2]
[391645996,1760716282970,-344.04351,0.00024931,7]
[391645997,1760716282979,-500.0,0.00024931,2]
[391645998,1760716282989,-500.0,0.00024931,2]
[391645999,1760716282999,-500.0,0.00024931,2]
[391646000,1760716283008,-500.0,0.00024931,2]
[391646001,1760716283018,-339.63982,0.00024931,7]
[391646002,1760716283027,-1333.69,0.00024931,2]
[391646003,1760716283037,-500.0,0.00024931,2]
[391646004,1760716283046,-339.63982,0.00024931,7]
[391646005,1760716283056,-151.0,0.00024931,7]
[391646006,1760716283067,-500.0,0.00024931,2]
[391646007,1760716283076,-339.63982,0.00024931,7]
[391646008,1760716283089,-151.0,0.00024931,7]
[391646009,1760716283099,-339.639827,0.00024931,7]
[391646010,1760716283109,-500.0,0.00024931,2]
[391646011,1760716283120,-590.75552096,0.00024931,2]
[391646012,1760716283131,-500.0,0.00024931,2]
[391646013,1760716283142,-500.0,0.00024931,2]
[391646014,1760716283152,-500.0,0.00024931,2]
[391646015,1760716283161,-151.0,0.00024931,7]
[391646016,1760716283171,-500.0,0.00024931,2]
[391646017,1760716283180,-2493.19,0.00024931,2]
[391646018,1760716283195,-500.0,0.00024931,2]
[391646019,1760716283205,-545.43008702,0.00024931,2]
[391646020,1760716283215,-500.0,0.00024931,2]
[391646021,1760716283226,-500.0,0.00024931,2]
[391646022,1760716283238,-327.15478925,0.00024931,2]
[391646023,1760716283252,-401.41470702,0.00024931,2]
[391646024,1760716283262,-2016.17,0.00024931,2]
[391646025,1760716283273,-500.0,0.00024931,2]
[391646026,1760716283283,-500.0,0.00024931,2]
[391646027,1760716283294,-537.54,0.00024931,2]
[391646028,1760716283304,-500.0,0.00024931,2]
[391646029,1760716283314,-500.0,0.00024931,2]
[391646030,1760716283324,-500.0,0.00024931,2]
[391646031,1760716283334,-4194.44,0.00024931,2]
[391646032,1760716283349,-284.88419056,0.00024931,2]
[391646033,1760716283359,-500.0,0.00024931,2]
[391646034,1760716283371,-242.04427469,0.00024931,2]
[391646035,1760716283381,-500.0,0.00024931,2]
[391646036,1760716283392,-2738.94,0.00024931,2]
[391646037,1760716283402,-500.0,0.00024931,2]
[391646038,1760716283412,-211.13945726,0.00024931,2]
[391646039,1760716283423,-2045.71,0.00024931,2]
[391646040,1760716283433,-500.0,0.00024931,2]
[391646041,1760716283443,-500.0,0.00024931,2]
[391646042,1760716283453,-617.57598544,0.00024931,2]
[391646043,1760716283462,-587.97678808,0.00024931,2]
[391646044,1760716283471,-500.0,0.00024931,2]
[391646045,1760716283481,-206.37514645,0.00024931,2]
[391646046,1760716283491,-1485.23,0.00024931,2]
[391646047,1760716283501,-574.99719436,0.00024931,2]
[391646048,1760716283511,-500.0,0.00024931,2]
[391646049,1760716283520,-500.0,0.00024931,2]
[391646050,1760716283530,-500.0,0.00024931,2]
[391646051,1760716283540,-500.0,0.00024931,2]
[391646052,1760716283550,-231.30155754,0.00024931,2]
[391646053,1760716283560,-500.0,0.00024931,2]
[391646054,1760716283570,-774.74,0.00024931,2]
[391646055,1760716283580,-500.0,0.00024931,2]
[391646056,1760716283593,-962.9,0.00024931,2]
[391646057,1760716283603,-500.0,0.00024931,2]
[391646058,1760716283614,-500.0,0.00024931,2]
[391646059,1760716283624,-500.0,0.00024931,2]
[391646060,1760716283638,-500.0,0.00024931,2]
[391646061,1760716283648,-574.16060833,0.00024931,2]
[391646062,1760716283658,-500.0,0.00024931,2]
[391646063,1760716283669,-500.0,0.00024931,2]
[391646064,1760716283682,-405.54356136,0.00024931,2]
[391646065,1760716283692,-510.4,0.00024931,2]
[391646066,1760716283702,-500.0,0.00024931,2]
[391646067,1760716283712,-500.0,0.00024931,2]
[391646068,1760716283725,-493.44807243,0.00024931,2]
[391646069,1760716283735,-311.81557835,0.00024931,2]
[391646070,1760716283745,-500.0,0.00024931,2]
[391646071,1760716283756,-500.0,0.00024931,2]
[391646072,1760716283766,-500.0,0.00024931,2]
[391646073,1760716283777,-500.54396633,0.00024931,2]
[391646074,1760716283787,-500.0,0.00024931,2]
[391646075,1760716283797,-500.0,0.00024931,2]
[391646076,1760716283807,-500.0,0.00024931,2]
[391646077,1760716283818,-194.9501507,0.00024931,2]
[391646078,1760716283828,-500.0,0.00024931,2]
[391646079,1760716283839,-500.0,0.00024942,2]
[391646080,1760716283850,-1615.86,0.00024942,2]
[391646081,1760716283860,-595.8,0.00024942,2]
[391646082,1760716283870,-151.0,0.00024943,7]
[391646083,1760716283881,-151.0,0.00024943,7]
[391646084,1760716283890,-151.0,0.00024943,7]
[391646085,1760716283900,-152.128691,0.00024943,7]
[391646086,1760716283910,-226.884483,0.00024943,7]
[391646087,1760716283920,-151.0,0.00024943,7]
[391646088,1760716283930,-151.0,0.00024943,7]
[391646089,1760716283939,-257.268583,0.00024943,7]
[391646090,1760716283950,-257.268583,0.00024943,7]
[391646091,1760716283960,-257.268583,0.00024943,7]
[391646092,1760716283971,-151.0,0.00024943,7]
[391646093,1760716283982,-257.268583,0.00024943,7]
[391646094,1760716283993,-151.0,0.00024943,7]
[391646095,1760716284003,-151.0,0.00024943,7]
[391646096,1760716284013,-151.0,0.00024943,7]
[391646097,1760716284024,-287.475356,0.00024943,7]
[391646098,1760716284034,-151.0,0.00024943,7]
[391646099,1760716284044,-151.0,0.00024943,7]
[391646100,1760716284054,-151.0,0.00024943,7]
[391646101,1760716284065,-151.0,0.00024943,7]
[391646102,1760716284076,-370.274819,0.00024943,7]
[391646103,1760716284090,-153.434451,0.00024943,7]
[391646104,1760716284103,-370.274819,0.00024943,7]
[391646105,1760716284115,-370.274819,0.00024943,7]
[391646106,1760716284128,-370.274819,0.00024943,7]
[391646107,1760716284140,-257.897674,0.00024943,7]
[391646108,1760716284152,-257.897674,0.00024943,7]
[391646109,1760716284165,-257.897674,0.00024943,7]
[391646110,1760716284178,-257.897674,0.00024943,7]
[391646111,1760716284190,-153.733574,0.00024963,3]
[391646112,1760716284202,-153.733574,0.00024963,3]
[391646113,1760716284213,-1836.796906,0.00024963,3]
[391646114,1760716284224,-151.107744,0.00024963,3]
[391646115,1760716284236,-2227.955231,0.00024963,3]
[391646116,1760716284248,-159.789826,0.00024994,3]
[391646117,1760716284260,-153.733574,0.00024994,3]
[391646118,1760716284272,-153.733574,0.00024994,3]
[391646119,1760716284288,-151.107744,0.00024994,3]
[391646120,1760716284299,-1836.796906,0.00024994,3]
[391646121,1760716284310,-2227.955231,0.00024994,3]
[391646122,1760716284321,-5966.63306354,0.00025,2]
[391646123,1760716284332,-2000.0,0.00025,4]
[391646124,1760716284351,-159.789826,0.00025,4]
[391646125,1760716284363,-151.107744,0.00025,4]
[391646126,1760716284375,-1836.796906,0.00025,4]
[391646127,1760716284386,-2227.955231,0.00025,4]
[391646128,1760716284397,-1000.0,0.00025,2]
[391646129,1760716284407,-151.0,0.00025,7]
[391646130,1760716284419,-159.789826,0.00025026,3]
[391646131,1760716284429,-153.733574,0.00025026,3]
[391646132,1760716284440,-153.733574,0.00025026,3]
[391646133,1760716284452,-151.107744,0.00025026,3]
[391646134,1760716284462,-1836.796906,0.00025026,3]
[391646135,1760716284473,-2227.955231,0.00025026,3]
[391646136,1760716284483,-13826.86936243,0.00025105,2]
[391646137,1760716284493,-298.09744745,0.00025105,2]
[391646138,1760716284503,-500.0,0.00025203,2]
[391646139,1760716284514,-500.0,0.00025203,2]
[391646140,1760716284524,-500.0,0.00025203,2]
[391646141,1760716284534,-634.91,0.00025203,2]
[391646142,1760716284544,-500.0,0.00025204,2]
[391646143,1760716284554,-500.0,0.00025204,2]
[391646144,1760716284565,-1118.49,0.00025204,2]
[391646145,1760716284575,-151.0,0.00025204,7]
[391646146,1760716284586,-222.011921,0.00025204,7]
[391646147,1760716284601,-222.011921,0.00025204,7]
[391646148,1760716284611,-222.011921,0.00025204,7]
[391646149,1760716284622,-155.115465,0.00025204,7]
[391646150,1760716284633,-151.0,0.00025204,7]